bitfinex/quotes_SOLUSD_20250410
["timestamp","ask_amount","ask_price","bid_price","bid_amount"]
[1744302715867,0.03,109.43,109.41,61.33393073]
[1744302716069,0.03,109.43,109.42,52.19413073]
[1744302716573,0.03,109.43,109.41,61.33393073]
[1744302716762,0.03,109.43,109.42,52.19413073]
[1744302717276,0.03,109.43,109.4,52.19413073]
[1744302717454,0.03,109.43,109.39,80.9999]
[1744302718072,0.03,109.43,109.4,52.19413073]
[1744302718256,0.03,109.43,109.42,52.19413073]
[1744302718570,0.03,109.43,109.4,80.9999]
[1744302718870,0.03,109.43,109.42,52.19413073]
[1744302719371,0.03,109.43,109.41,9.1399]
[1744302719676,52.22413073,109.43,109.38,94.72684109]
[1744302719864,52.22413073,109.43,109.39,52.19413073]
[1744302720055,0.03,109.43,109.4,52.19413073]
[1744302720254,0.03,109.43,109.41,52.19413073]
[1744302720477,0.03,109.43,109.42,52.19413073]
[1744302720790,0.03,109.43,109.42,61.33313073]
[1744302720954,0.03,109.43,109.42,61.4752923]
[1744302721274,0.03,109.43,109.42,142.4751923]
[1744302721478,0.03,109.43,109.42,142.33303073]
[1744302721654,0.03,109.43,109.4,9.1403]
[1744302721983,0.03,109.43,109.4,52.19413073]
[1744302722661,0.03,109.43,109.39,80.9999]
[1744302722863,0.03,109.43,109.4,52.19413073]
[1744302723153,0.03,109.43,109.42,52.19413073]
[1744302723573,0.03,109.43,109.4,9.1403]
[1744302723757,0.03,109.43,109.42,52.19413073]
[1744302724077,0.03,109.43,109.42,52.3362923]
[1744302724259,0.03,109.43,109.42,26.14216157]
[1744302724448,0.03,109.43,109.42,52.19413073]
[1744302724649,0.03,109.43,109.42,61.33313073]
[1744302725366,0.03,109.43,109.41,9.1399]
[1744302725974,0.03,109.43,109.4,0.14216157]
[1744302726275,0.03,109.43,109.42,52.19413073]
[1744302726473,0.03,109.43,109.42,52.3362923]
[1744302726845,0.03,109.43,109.42,61.4752923]
[1744302727053,0.03,109.43,109.42,80.4092643]
[1744302727757,0.0001,109.43,109.42,161.4091643]
[1744302727958,0.03,109.46,109.45,26.14216157]
[1744302728157,0.0001,109.46,109.45,230.46429503]
[1744302728988,0.0001,109.46,109.45,239.60079503]
[1744302729985,0.03,109.49,109.48,26.0]
[1744302730182,0.03,109.52,109.49,19.07613357]
[1744302730486,26.0,109.55,109.51,0.5]
[1744302730702,52.19413073,109.52,109.48,0.5]
[1744302730877,61.32653073,109.5,109.46,0.5]
[1744302731068,9.1324,109.5,109.46,0.5]
[1744302731393,61.32653073,109.5,109.47,0.5]
[1744302731562,52.19413073,109.48,109.45,81.4999]
[1744302731759,52.19413073,109.49,109.46,0.5]
[1744302731960,18.52,109.53,109.46,0.5]
[1744302731961,9.41422314,109.53,109.48,0.5]
[1744302732266,52.19413073,109.52,109.49,0.5]
[1744302732464,9.1299,109.53,109.48,0.5]
[1744302732766,9.1299,109.53,109.49,0.5]
[1744302733079,52.19413073,109.52,109.48,52.69413073]
[1744302733262,52.19413073,109.52,109.48,0.5]
[1744302733669,52.19413073,109.49,109.46,0.5]
[1744302733866,52.19413073,109.49,109.45,81.4999]
[1744302734289,52.19413073,109.49,109.46,0.5]
[1744302734461,52.19413073,109.48,109.45,0.5]
[1744302734662,52.19413073,109.47,109.43,81.4999]
[1744302734877,78.19413073,109.5,109.4,89.02657915]
[1744302734878,61.32983073,109.46,109.44,0.5]
[1744302735076,9.1357,109.46,109.44,0.5]
[1744302735375,9.1357,109.46,109.43,0.5]
[1744302735688,52.19413073,109.44,109.42,0.5]
[1744302735891,61.32983073,109.46,109.42,0.5]
[1744302736467,61.32983073,109.46,109.42,52.69413073]
[1744302736669,61.32983073,109.46,109.42,0.5]
[1744302736670,52.19413073,109.45,109.42,0.5]
[1744302736969,9.1381,109.44,109.41,0.5]
[1744302737370,22.8393,109.46,109.42,52.69413073]
[1744302737371,61.32983073,109.46,109.42,52.69413073]
[1744302737683,52.19413073,109.45,109.42,0.5]
[1744302737884,52.19413073,109.43,109.41,0.5]
[1744302738066,9.1357,109.46,109.41,52.69413073]
[1744302738269,9.1353,109.47,109.44,52.19413073]
[1744302738495,9.1353,109.47,109.44,52.69413073]
[1744302738796,52.19413073,109.45,109.43,0.5]
[1744302739002,61.33003073,109.46,109.43,0.5]
[1744302739295,61.32933073,109.47,109.43,0.5]
[1744302739596,52.19413073,109.49,109.44,52.69413073]
[1744302739801,61.32653073,109.5,109.46,0.5]
[1744302740005,52.19413073,109.49,109.46,0.5]
[1744302740295,52.19413073,109.48,109.45,0.5]
[1744302740495,84.15753073,109.5,109.43,142.33223073]
[1744302740496,18.79181043,109.49,109.44,0.5]
[1744302740697,52.19413073,109.45,109.42,0.5]
[1744302740896,35.1361,109.46,109.42,0.5]
[1744302741069,52.19413073,109.45,109.42,0.5]
[1744302741500,34.74566745,109.45,109.42,0.5]
[1744302741806,34.74566745,109.45,109.41,0.5]
[1744302741975,34.74566745,109.44,109.4,116.24556745]
[1744302742171,35.1361,109.46,109.42,0.5]
[1744302742566,34.74566745,109.45,109.42,0.5]
[1744302742780,34.74566745,109.44,109.42,0.5]
[1744302742981,35.1361,109.46,109.42,0.5]
[1744302743193,69.88176745,109.46,109.42,9.6389]
[1744302743700,69.88176745,109.46,109.42,44.38456745]
[1744302743905,26.0,109.45,109.42,44.38456745]
[1744302744084,34.74566745,109.44,109.4,0.5]
[1744302744290,31.9751,109.46,109.39,0.563]
[1744302744291,34.74566745,109.42,109.39,0.563]
[1744302744493,8.5489,109.44,109.39,9.2044]
[1744302744678,34.74566745,109.43,109.4,0.5]
[1744302745005,8.5489,109.44,109.4,0.5]
[1744302745210,34.74566745,109.42,109.39,0.563]
[1744302745507,69.4913349,109.4,109.39,0.063]
[1744302747013,88.4253069,109.4,109.39,0.063]
[1744302747197,97.5660069,109.4,109.39,0.063]
[1744302747380,9.1402,109.41,109.39,0.063]
[1744302747875,9.1382,109.43,109.39,0.063]
[1744302748311,61.30029311,109.43,109.39,0.563]
[1744302748612,61.30029311,109.43,109.39,0.063]
[1744302748613,31.9838,109.43,109.39,0.063]
[1744302748787,52.16209311,109.4,109.39,0.063]
[1744302749287,80.23676511,109.4,109.39,0.063]
[1744302749488,132.39885822,109.4,109.39,0.063]
[1744302750005,61.30279311,109.4,109.39,0.063]
[1744302750312,9.1407,109.4,109.39,0.063]
[1744302750682,61.30279311,109.4,109.39,0.063]
[1744302751405,9.1403,109.41,109.39,0.063]
[1744302751609,52.16209311,109.4,109.39,0.063]
[1744302752691,9.1403,109.41,109.39,0.063]
[1744302752891,54.38226157,109.44,109.39,0.063]
[1744302752892,8.5489,109.44,109.39,52.22509311]
[1744302753094,9.1382,109.43,109.4,0.5]
[1744302753290,61.30029311,109.43,109.39,0.563]
[1744302753614,52.16209311,109.41,109.39,0.063]
[1744302753808,52.16209311,109.4,109.39,0.063]
[1744302754182,71.09606511,109.4,109.39,0.063]
[1744302754487,18.933972,109.4,109.39,0.063]
[1744302754697,131.93475822,109.4,109.39,0.063]
[1744302755006,26.0,109.37,109.34,0.063]
[1744302755193,52.16209311,109.35,109.34,0.063]
[1744302755511,26.0,109.37,109.34,0.063]
[1744302755818,9.1444,109.36,109.34,0.063]
[1744302756009,52.16209311,109.35,109.34,0.063]
[1744302756704,123.25815822,109.35,109.34,0.063]
[1744302757093,18.933972,109.35,109.34,0.063]
[1744302757299,9.1444,109.36,109.34,0.063]
[1744302757614,52.16209311,109.35,109.34,0.063]
[1744302757798,52.16209311,109.36,109.34,0.063]
[1744302758005,52.16209311,109.37,109.34,0.563]
[1744302758391,11.2567,109.38,109.34,0.063]
[1744302758586,52.16209311,109.37,109.34,0.563]
[1744302758999,9.1417,109.39,109.35,0.5]
[1744302759314,52.16209311,109.37,109.34,0.563]
[1744302759493,52.16209311,109.35,109.34,0.063]
[1744302759697,9.1441,109.36,109.34,0.063]
[1744302760207,52.16209311,109.36,109.34,0.063]
[1744302760510,52.16209311,109.35,109.34,0.063]
[1744302760698,9.1426,109.38,109.34,9.2087]
[1744302760897,26.0,109.37,109.34,9.7087]
[1744302761087,9.1419,109.39,109.34,61.87079311]
[1744302761289,52.16209311,109.38,109.35,0.5]
[1744302761808,9.1419,109.39,109.35,0.5]
[1744302762018,52.16209311,109.38,109.35,0.5]
[1744302762392,9.1419,109.39,109.34,61.37079311]
[1744302762393,52.16209311,109.36,109.34,0.063]
[1744302762598,26.0,109.36,109.34,0.063]
[1744302762804,52.16209311,109.36,109.34,0.063]
[1744302763497,78.16209311,109.35,109.34,0.063]
[1744302763684,87.30699311,109.35,109.34,0.063]
[1744302764294,139.46908622,109.35,109.34,0.063]
[1744302764489,87.30699311,109.35,109.34,0.063]
[1744302764711,139.46908622,109.35,109.34,0.063]
[1744302764916,26.0,109.35,109.34,0.063]
[1744302765090,87.30699311,109.35,109.34,0.063]
[1744302765285,26.0,109.35,109.34,0.063]
[1744302765484,19.07613357,109.38,109.34,52.22509311]
[1744302765485,61.30449311,109.38,109.34,52.22509311]
[1744302765685,52.16209311,109.38,109.34,9.7082]
[1744302765918,9.1419,109.39,109.34,61.87029311]
[1744302766102,52.16209311,109.38,109.34,61.87029311]
[1744302766303,9.1419,109.39,109.34,9.7082]
[1744302766502,9.1419,109.39,109.34,61.87029311]
[1744302766810,52.16209311,109.38,109.34,61.87029311]
[1744302767197,78.16209311,109.35,109.34,0.063]
[1744302767404,52.16209311,109.35,109.34,0.063]
[1744302767599,8.8489,109.37,109.34,0.063]
[1744302767798,87.30639311,109.36,109.34,0.063]
[1744302767996,52.16209311,109.35,109.34,0.063]
[1744302768203,87.30639311,109.36,109.34,0.063]
[1744302768412,52.16209311,109.35,109.34,0.063]
[1744302768916,35.1443,109.36,109.34,0.063]
[1744302769122,52.16209311,109.35,109.34,0.063]
[1744302769490,35.1443,109.36,109.34,0.063]
[1744302769694,52.16209311,109.35,109.34,0.063]
[1744302771222,35.1443,109.36,109.34,0.063]
[1744302771403,87.30639311,109.36,109.34,0.063]
[1744302771704,52.16209311,109.35,109.34,0.063]
[1744302771919,61.30699311,109.35,109.34,0.063]
[1744302772614,26.0,109.36,109.34,0.063]
[1744302773022,25.0033,109.42,109.37,0.5]
[1744302773227,52.16209311,109.4,109.36,0.5]
[1744302773397,52.16209311,109.38,109.36,0.5]
[1744302773726,52.16209311,109.4,109.36,52.66209311]
[1744302773903,9.1399,109.41,109.36,61.80589311]
[1744302774322,9.1394,109.42,109.38,52.66209311]
[1744302774510,52.16209311,109.43,109.39,0.5]
[1744302774822,52.16209311,109.43,109.4,0.5]
[1744302775799,26.0,109.44,109.4,52.66209311]
[1744302775994,9.1357,109.46,109.41,52.66209311]
[1744302776213,61.29779311,109.46,109.41,61.80189311]
[1744302776428,61.29779311,109.46,109.42,0.5]
[1744302776628,52.16209311,109.43,109.4,0.5]
[1744302776921,52.16209311,109.41,109.36,9.6436]
[1744302777126,52.16209311,109.4,109.36,61.80569311]
[1744302777300,26.0,109.41,109.36,9.6436]
[1744302777498,52.16209311,109.4,109.37,0.5]
[1744302777706,26.0,109.41,109.37,0.5]
[1744302777707,78.16209311,109.41,109.37,0.5]
[1744302777907,87.30249311,109.41,109.37,0.5]
[1744302778219,52.16209311,109.4,109.37,0.5]
[1744302779223,61.30289311,109.4,109.37,0.5]
[1744302779422,61.30289311,109.4,109.36,61.80569311]
[1744302779622,35.1403,109.41,109.37,0.5]
[1744302779803,26.0,109.41,109.38,0.5]
[1744302779996,35.1399,109.41,109.38,52.66209311]
[1744302780331,52.16209311,109.4,109.36,0.5]
[1744302780496,35.1399,109.41,109.37,0.5]
[1744302780691,87.30199311,109.41,109.38,0.5]
[1744302781126,52.16209311,109.4,109.36,0.5]
[1744302781301,35.1399,109.41,109.37,0.5]
[1744302781502,52.16209311,109.4,109.37,0.5]
[1744302781718,35.1399,109.41,109.35,92.723]
[1744302781719,52.16209311,109.39,109.35,92.723]
[1744302781897,57.9897,109.41,109.37,0.5]
[1744302782097,35.1399,109.41,109.36,52.66209311]
[1744302782294,35.1399,109.41,109.37,0.5]
[1744302782524,87.30199311,109.41,109.37,0.5]
[1744302782730,9.1356,109.47,109.43,0.5]
[1744302783023,9.1332,109.49,109.45,52.66209311]
[1744302783202,52.16209311,109.48,109.44,0.5]
[1744302783527,52.16209311,109.48,109.43,80.9999]
[1744302783528,9.1345,109.48,109.43,80.9999]
[1744302783703,52.16209311,109.45,109.43,80.9999]
[1744302784210,52.16209311,109.46,109.43,80.9999]
[1744302784405,31.9697,109.48,109.41,9.2122]
[1744302784406,52.16209311,109.44,109.41,9.2122]
[1744302784632,52.16209311,109.43,109.4,80.9999]
[1744302784819,26.0,109.45,109.4,52.66209311]
[1744302785129,78.16209311,109.45,109.41,52.66209311]
[1744302785299,78.16209311,109.45,109.41,0.5]
[1744302785500,78.16209311,109.45,109.41,52.66209311]
[1744302785699,26.0,109.45,109.42,52.66209311]
[1744302785895,26.0,109.45,109.42,0.5]
[1744302786125,26.0,109.45,109.43,52.16209311]
[1744302786315,61.29659311,109.48,109.43,52.16209311]
[1744302786505,52.16209311,109.47,109.43,52.66209311]
[1744302786719,9.1345,109.48,109.43,52.66209311]
[1744302786904,9.1345,109.48,109.44,52.66209311]
[1744302787106,61.29659311,109.48,109.44,52.66209311]
[1744302787333,61.29659311,109.48,109.45,0.5]
[1744302787630,9.1337,109.49,109.46,0.5]
[1744302787814,61.29579311,109.49,109.46,0.5]
[1744302788398,9.1315,109.51,109.47,52.66209311]
[1744302788734,9.1299,109.53,109.5,52.16209311]
[1744302788949,61.29139311,109.54,109.49,0.5]
[1744302789302,52.16209311,109.53,109.49,0.5]
[1744302789526,52.16209311,109.53,109.5,0.5]
[1744302789837,9.1604,109.53,109.5,52.66209311]
[1744302790015,61.32249311,109.53,109.49,52.66209311]
[1744302790331,61.32249311,109.53,109.5,0.5]
[1744302790636,61.32249311,109.53,109.49,0.5]
[1744302790927,52.16209311,109.51,109.48,0.5]
[1744302791138,26.03,109.53,109.5,52.16209311]
[1744302791309,26.03,109.53,109.49,52.66209311]
[1744302791706,35.16,109.53,109.49,52.66209311]
[1744302792027,52.16209311,109.52,109.48,0.64216157]
[1744302792331,35.16,109.53,109.49,52.66209311]
[1744302792518,35.16,109.53,109.5,52.16209311]
[1744302792730,35.16,109.53,109.49,0.5]
[1744302793033,35.16,109.53,109.49,52.66209311]
[1744302793237,0.03,109.53,109.52,52.66209311]
[1744302794029,0.03,109.53,109.51,61.79349311]
[1744302794228,0.03,109.53,109.52,52.66209311]
[1744302794529,0.03,109.53,109.52,0.64216157]
[1744302794742,0.03,109.53,109.52,133.80425468]
[1744302795232,0.03,109.53,109.52,81.64216157]
[1744302795532,0.03,109.53,109.52,133.66209311]
[1744302796035,0.03,109.53,109.52,81.5]
[1744302796331,0.03,109.53,109.52,161.86892668]
[1744302796831,0.03,109.53,109.52,142.93495468]
[1744302797451,0.03,109.53,109.52,133.66209311]
[1744302797736,0.03,109.53,109.52,142.93495468]
[1744302798103,0.03,109.53,109.52,161.86892668]
[1744302798312,0.03,109.53,109.52,142.93495468]
[1744302798923,0.03,109.53,109.52,133.80425468]
[1744302799125,0.03,109.53,109.52,161.86892668]
[1744302799907,0.03,109.53,109.52,142.93495468]
[1744302801233,0.03,109.53,109.52,161.86892668]
[1744302801444,0.03,109.53,109.52,142.93495468]
[1744302802430,0.03,109.53,109.52,161.86892668]
[1744302802832,0.0001,109.53,109.52,161.86892668]
[1744302803722,0.0001,109.53,109.52,214.03101979]
[1744302803920,0.03,109.55,109.54,45.07613357]
[1744302804212,0.03,109.55,109.54,240.02931979]
[1744302804531,0.03,109.55,109.54,142.93325468]
[1744302805112,0.03,109.55,109.54,81.5]
[1744302805312,52.19209311,109.55,109.52,0.5]
[1744302805527,78.19209311,109.55,109.52,0.5]
[1744302805708,52.16209311,109.54,109.52,0.5]
[1744302806032,52.16209311,109.53,109.49,52.66209311]
[1744302806232,52.16209311,109.53,109.5,0.5]
[1744302806435,9.1585,109.55,109.5,52.80425468]
[1744302806631,52.16209311,109.54,109.5,0.64216157]
[1744302806943,9.1585,109.55,109.51,0.5]
[1744302807130,0.03,109.55,109.53,0.5]
[1744302807933,52.16209311,109.54,109.52,0.5]
[1744302808111,52.16209311,109.54,109.51,0.5]
[1744302808311,52.16209311,109.53,109.51,0.5]
[1744302808539,26.03,109.55,109.53,0.5]
[1744302808710,0.03,109.55,109.54,0.5]
[1744302809816,0.03,109.55,109.54,133.80425468]
[1744302810025,0.03,109.55,109.54,161.86722668]
[1744302810520,0.03,109.55,109.54,90.77116157]
[1744302810924,0.03,109.55,109.54,161.86722668]
[1744302811117,0.03,109.55,109.54,142.93325468]
[1744302811530,0.03,109.55,109.54,161.86722668]
[1744302811913,0.03,109.55,109.54,133.80425468]
[1744302812335,0.03,109.55,109.54,142.93325468]
[1744302812539,0.03,109.55,109.54,161.86722668]
[1744302812926,0.03,109.55,109.54,214.02931979]
[1744302813442,0.03,109.55,109.54,161.86722668]
[1744302814248,0.03,109.55,109.54,133.80425468]
[1744302814455,0.03,109.55,109.54,142.93325468]
[1744302814621,0.03,109.55,109.54,161.86722668]
[1744302815519,0.03,109.55,109.54,214.02931979]
[1744302815734,0.03,109.58,109.57,26.64216157]
[1744302815928,0.03,109.58,109.57,81.61216157]
[1744302816125,60.84629311,109.6,109.57,81.61216157]
[1744302816349,9.1224,109.62,109.57,81.61216157]
[1744302816518,52.16209311,109.6,109.57,81.47]
[1744302816727,31.9284,109.62,109.57,81.47]
[1744302816924,31.9284,109.62,109.57,80.97]
[1744302816925,52.16209311,109.58,109.57,80.97]
[1744302817126,52.16209311,109.58,109.55,0.5]
[1744302817359,52.16209311,109.56,109.55,0.5]
[1744302817526,18.933972,109.59,109.53,81.47]
[1744302817731,52.16209311,109.54,109.53,0.5]
[1744302817951,52.16209311,109.54,109.52,0.5]
[1744302818134,52.16209311,109.53,109.52,0.5]
[1744302818449,52.16209311,109.54,109.53,0.5]
[1744302819049,52.16209311,109.54,109.52,0.5]
[1744302819254,52.16209311,109.54,109.53,0.5]
[1744302819443,61.29069311,109.55,109.53,0.5]
[1744302819645,9.1286,109.55,109.53,0.5]
[1744302819953,52.16209311,109.56,109.54,0.5]
[1744302820152,31.9429,109.57,109.54,0.5]
[1744302820328,52.16209311,109.55,109.52,0.5]
[1744302820530,52.16209311,109.53,109.52,0.5]
[1744302820737,26.0,109.5,109.48,0.5]
[1744302820948,52.16209311,109.49,109.48,0.5]
[1744302821454,59.85799311,109.55,109.51,0.5]
[1744302821660,59.85799311,109.55,109.48,81.47]
[1744302821661,52.16209311,109.52,109.48,81.47]
[1744302821957,52.16209311,109.49,109.48,0.5]
[1744302822155,52.16209311,109.5,109.49,0.5]
[1744302822452,9.131,109.52,109.51,0.5]
[1744302822758,9.129,109.54,109.51,0.5]
[1744302822939,31.9517,109.54,109.51,0.5]
[1744302823340,9.129,109.54,109.52,0.5]
[1744302823538,61.29109311,109.54,109.52,0.5]
[1744302823732,60.79109311,109.54,109.52,0.5]
[1744302824064,8.629,109.54,109.52,0.5]
[1744302824355,52.16209311,109.53,109.51,0.5]
[1744302824543,52.16209311,109.52,109.51,0.5]
[1744302824726,18.933972,109.56,109.51,0.5]
[1744302824930,52.16209311,109.55,109.51,0.5]
[1744302825127,52.16209311,109.52,109.51,0.5]
[1744302825732,52.16209311,109.52,109.5,0.5]
[1744302825931,26.0,109.48,109.44,0.5]
[1744302826136,52.16209311,109.45,109.44,0.5]
[1744302826332,9.1357,109.46,109.45,0.5]
[1744302826552,61.29779311,109.46,109.45,0.5]
[1744302826932,52.16209311,109.49,109.47,0.5]
[1744302827142,22.8277,109.52,109.48,0.5]
[1744302827363,52.16209311,109.5,109.48,0.5]
[1744302827558,52.16209311,109.49,109.48,0.5]
[1744302828264,52.16209311,109.49,109.47,0.5]
[1744302828558,52.16209311,109.48,109.47,0.5]
[1744302828759,52.16209311,109.5,109.47,0.5]
[1744302828963,52.16209311,109.48,109.47,0.5]
[1744302829256,34.72600097,109.48,109.46,0.5]
[1744302829564,34.72600097,109.48,109.45,80.97]
[1744302829565,34.72600097,109.48,109.47,0.5]
[1744302829744,26.0,109.49,109.46,0.5]
[1744302830057,31.9575,109.52,109.5,0.5]
[1744302830252,34.72600097,109.51,109.5,0.5]
[1744302830447,9.1302,109.53,109.51,0.5]
[1744302830659,9.1302,109.53,109.52,0.5]
[1744302830660,34.72600097,109.53,109.52,0.5]
[1744302831160,9.1282,109.55,109.52,0.5]
[1744302831339,9.1282,109.55,109.53,0.5]
[1744302831540,34.72600097,109.54,109.53,0.5]
[1744302831743,34.72600097,109.54,109.51,0.5]
[1744302831945,66.67480097,109.55,109.51,0.5]
[1744302832251,34.72600097,109.53,109.52,0.5]
[1744302832438,9.1274,109.56,109.53,0.5]
[1744302832635,34.72600097,109.55,109.53,0.5]
[1744302832963,34.72600097,109.55,109.52,0.5]
[1744302833260,52.07717772,109.53,109.48,0.5]
[1744302833465,52.07717772,109.49,109.47,0.5]
[1744302833763,52.07717772,109.49,109.48,0.5]
[1744302833966,52.07717772,109.49,109.46,0.5]
[1744302834159,52.07717772,109.48,109.46,0.5]
[1744302834341,9.134,109.48,109.47,0.5]
[1744302834541,61.21067772,109.49,109.47,0.5]
[1744302834758,35.1325,109.5,109.48,0.5]
[1744302834966,87.20967772,109.5,109.48,0.5]
[1744302835136,52.07717772,109.49,109.47,0.5]
[1744302835462,52.07717772,109.49,109.46,0.5]
[1744302835641,52.07717772,109.49,109.47,0.5]
[1744302835845,35.1325,109.5,109.47,0.5]
[1744302836047,52.07717772,109.49,109.46,0.5]
[1744302836361,52.07717772,109.47,109.46,0.063]
[1744302836544,61.21207772,109.47,109.46,0.563]
[1744302837167,61.21207772,109.47,109.46,0.063]
[1744302838661,52.07717772,109.47,109.46,0.063]
[1744302839235,27.92581043,109.48,109.46,0.063]
[1744302839458,9.134,109.48,109.46,0.563]
[1744302839669,9.1324,109.5,109.47,0.5]
[1744302839847,9.1307,109.52,109.49,0.5]
[1744302840174,52.07717772,109.5,109.48,0.5]
[1744302840370,52.07717772,109.49,109.47,0.5]
[1744302840547,52.07717772,109.5,109.48,0.5]
[1744302840748,26.0,109.49,109.46,81.533]
[1744302840948,78.07717772,109.49,109.46,81.533]
[1744302841163,78.07717772,109.49,109.47,0.5]
[1744302841370,78.07717772,109.49,109.46,81.533]
[1744302841866,26.0,109.49,109.47,0.5]
[1744302842170,52.07717772,109.5,109.47,0.5]
[1744302842375,52.07717772,109.49,109.47,0.5]
[1744302842667,9.134,109.48,109.47,0.5]
[1744302842873,9.1335,109.49,109.47,0.5]
[1744302843073,52.07717772,109.48,109.46,0.063]
[1744302843393,52.07717772,109.47,109.46,0.063]
[1744302843763,71.01114972,109.47,109.46,0.063]
[1744302843957,71.15331129,109.47,109.46,0.0001]
[1744302844156,123.23048901,109.47,109.46,0.0001]
[1744302844476,71.15331129,109.47,109.46,0.0001]
[1744302844668,80.28821129,109.47,109.46,0.0001]
[1744302844870,80.14604972,109.47,109.46,0.0001]
[1744302845579,9.1349,109.47,109.46,0.0001]
[1744302845754,61.18468772,109.47,109.46,0.0001]
[1744302846077,52.07717772,109.47,109.46,0.0001]
[1744302846272,61.21207772,109.47,109.46,0.0001]
[1744302847459,9.1349,109.47,109.46,0.0001]
[1744302847885,61.21207772,109.47,109.46,0.0001]
[1744302848193,1.9853,109.48,109.46,0.0001]
[1744302848368,52.07717772,109.49,109.46,0.0001]
[1744302848569,52.07717772,109.48,109.46,0.5001]
[1744302848879,9.134,109.48,109.46,0.5001]
[1744302849081,61.21117772,109.48,109.46,0.5001]
[1744302849481,9.134,109.48,109.46,0.5001]
[1744302849676,52.07717772,109.48,109.46,0.5001]
[1744302849883,9.1336,109.49,109.46,0.5001]
[1744302850083,61.21077772,109.49,109.46,0.5001]
[1744302850471,52.07717772,109.48,109.46,0.5001]
[1744302850691,61.21077772,109.49,109.46,0.5001]
[1744302850913,52.07717772,109.47,109.46,0.0001]
[1744302851368,31.9667,109.49,109.46,0.0001]
[1744302851569,52.07717772,109.48,109.46,0.0001]
[1744302851769,61.21077772,109.49,109.46,0.5001]
[1744302852074,31.9667,109.49,109.46,0.0001]
[1744302852267,31.9667,109.49,109.46,0.5001]
[1744302852467,31.9667,109.49,109.46,0.0001]
[1744302852667,52.07717772,109.48,109.46,0.0001]
[1744302853188,61.21207772,109.47,109.46,0.0001]
[1744302853495,43.8765848,109.47,109.46,0.0001]
[1744302853791,62.8105568,109.47,109.46,0.0001]
[1744302855098,62.95271837,109.47,109.46,0.0001]
[1744302858415,62.95271837,109.47,109.41,0.063]
[1744302858416,26.0,109.43,109.41,0.063]
[1744302858571,44.933972,109.43,109.41,0.063]
[1744302858767,53.6756568,109.42,109.41,0.063]
[1744302859070,62.8146568,109.42,109.41,0.063]
[1744302859496,9.1374,109.44,109.41,0.063]
[1744302859697,43.8790848,109.44,109.42,0.5]
[1744302859873,34.7416848,109.43,109.42,0.5]
[1744302860081,34.7416848,109.43,109.41,0.563]
[1744302860476,34.7416848,109.43,109.42,0.5]
[1744302860702,43.8790848,109.44,109.42,0.5]
[1744302860878,34.7416848,109.43,109.41,0.563]
[1744302861192,43.8806848,109.42,109.41,0.063]
[1744302861796,9.1382,109.43,109.41,0.063]
[1744302861995,43.8798848,109.43,109.41,0.563]
[1744302862293,9.1378,109.44,109.42,0.5]
[1744302862968,34.7416848,109.43,109.42,0.5]
[1744302863198,34.7416848,109.44,109.42,0.5]
[1744302863401,57.5841848,109.45,109.42,0.5]
[1744302863700,34.7416848,109.44,109.42,0.5]
[1744302864281,34.7416848,109.45,109.42,0.5]
[1744302864576,34.7416848,109.45,109.43,0.5]
[1744302864791,9.1357,109.46,109.43,0.5]
[1744302864987,9.1352,109.47,109.45,0.5]
[1744302865174,9.1352,109.47,109.46,0.5]